bitfinex-derivatives/quotes_ETHF0:USTF0_20240928
["timestamp","ask_amount","ask_price","bid_price","bid_amount"]
[1727558131461,3.2078,2668.0,2667.9,4.12273]
[1727558132469,3.2078,2668.0,2667.9,4.51933]
[1727558132770,1.7591,2668.2,2668.1,0.3747]
[1727558133272,2.49610001,2668.2,2668.1,0.3747]
[1727558142181,2.87079001,2668.2,2668.1,0.3747]
[1727558142481,2.87079001,2668.2,2668.0,0.3747]
[1727558142671,3.2078,2668.1,2668.0,0.3747]
[1727558142875,3.94480001,2668.1,2668.0,0.3747]
[1727558145182,3.94480001,2668.1,2668.0,0.37471]
[1727558145481,4.31950001,2668.1,2668.0,0.37471]
[1727558148181,3.94480001,2668.1,2668.0,0.37471]
[1727558154187,0.73700001,2668.1,2668.0,0.37471]
[1727558154390,3.94480001,2668.1,2668.0,0.37471]
[1727558160497,3.2078,2668.1,2668.0,4.12271]
[1727558164397,3.2078,2668.1,2668.0,5.10256532]
[1727558169303,0.37469,2668.2,2668.1,0.3747]
[1727558169490,1.11169001,2668.2,2668.1,0.3747]
[1727558169998,2.46169001,2668.2,2668.1,0.3747]
[1727558170196,2.08700001,2668.2,2668.1,0.3747]
[1727558170389,0.73700001,2668.2,2668.1,0.3747]
[1727558181104,6.03413687,2668.3,2668.2,0.37469]
[1727558181503,6.77113688,2668.3,2668.2,0.37469]
[1727558183107,0.37471,2668.1,2668.0,0.3747]
[1727558183407,1.72471,2668.1,2668.0,0.3747]
[1727558183702,2.46171001,2668.1,2668.0,0.3747]
[1727558183908,3.25101001,2668.1,2668.0,0.3747]
[1727558185604,3.25101001,2668.1,2667.8,1.76835532]
[1727558185803,2.08700001,2667.9,2667.6,2.44859798]
[1727558186009,2.08700001,2667.9,2667.6,0.37476]
[1727558186010,2.46176001,2667.7,2667.6,0.37476]
[1727558186209,2.46176001,2667.7,2667.4,1.35464532]
[1727558186210,0.37477,2667.6,2667.4,1.35464532]
[1727558186401,5.69280001,2667.5,2667.4,1.35464532]
[1727558186709,5.69280001,2667.5,2667.4,0.37479]
[1727558186902,6.06758001,2667.5,2667.3,1.75006532]
[1727558187209,0.73700001,2667.4,2667.3,1.75006532]
[1727558187405,0.73700001,2667.4,2667.3,0.77021]
[1727558188304,0.73700001,2667.4,2667.3,0.37481]
[1727558194916,0.73700001,2667.4,2667.3,1.31185]
[1727558196810,0.73700001,2667.4,2667.3,0.37481]
[1727558197315,0.73700001,2667.4,2667.3,1.31185]
[1727558197712,0.73700001,2667.4,2667.3,0.37481]
[1727558199019,0.73700001,2667.4,2667.3,1.31185]
[1727558199215,0.73700001,2667.4,2667.3,0.37481]
[1727558203010,0.73700001,2667.4,2667.3,1.31185]
[1727558204818,0.73700001,2667.4,2667.3,0.37481]
[1727558211025,0.8137,2667.6,2667.5,0.37478]
[1727558211419,1.55070001,2667.6,2667.5,0.37478]
[1727558219029,1.55070001,2667.6,2667.1,1.91694532]
[1727558219030,1.92548001,2667.6,2667.4,0.37479]
[1727558219239,1.7293,2667.5,2667.4,0.37479]
[1727558219434,2.46630001,2667.5,2667.4,0.37479]
[1727558219637,2.46630001,2667.5,2667.3,0.37481]
[1727558219840,1.7293,2667.5,2667.3,0.37481]
[1727558220139,0.73700001,2667.4,2667.3,0.37481]
[1727558220939,0.37481,2667.3,2667.0,0.97985532]
[1727558221132,2.08700001,2667.1,2667.0,0.37485]
[1727558221535,2.46630001,2667.1,2667.0,0.37485]
[1727558224560,5.67410001,2667.1,2667.0,0.37485]
[1727558227958,5.67410001,2667.1,2666.9,0.37486]
[1727558228155,1.35,2667.0,2666.9,0.37486]
[1727558228348,1.35,2667.0,2666.4,2.80577266]
[1727558228349,2.08700001,2667.0,2666.8,0.37487]
[1727558228560,0.3749,2666.7,2666.4,0.61778531]
[1727558228756,4.5578,2666.5,2666.4,0.37493]
[1727558229151,8.3082,2666.5,2666.4,0.37493]
[1727558229962,8.3082,2666.5,2666.4,0.37494]
[1727558230155,8.3082,2666.5,2665.9,0.7997]
[1727558230465,1.35,2666.2,2666.1,0.37498]
[1727558231563,5.1004,2666.2,2666.0,0.37499]
[1727558231760,2.5257,2666.1,2665.9,0.375]
[1727558231962,2.90068,2666.1,2665.9,0.375]
[1727558232158,1.35,2666.0,2665.9,0.375]
[1727558233255,11.1012,2666.0,2665.4,2.99087539]
[1727558233460,1.35,2665.8,2665.7,0.37504]
[1727558233856,5.1012,2665.8,2665.7,0.37504]
[1727558234261,5.1012,2665.8,2665.4,0.3695]
[1727558234563,4.5578,2665.6,2665.5,0.37507]
[1727558234867,4.5578,2665.6,2665.0,0.93785]
[1727558234868,8.309,2665.6,2665.0,0.4001]
[1727558235070,0.3798,2665.7,2665.6,0.37505]
[1727558235262,1.7298,2665.7,2665.6,0.37505]
[1727558237160,1.35,2665.7,2665.6,0.37505]
[1727558244060,3.2078,2665.8,2665.7,0.37504]
[1727558244364,3.2078,2666.4,2666.3,0.37495]
[1727558244761,1.35,2666.5,2666.0,2.67526]
[1727558244762,1.35,2666.7,2666.2,0.93742]
[1727558245266,3.2078,2666.9,2666.8,0.37488]
[1727558245466,4.139,2667.2,2667.1,0.37484]
[1727558245467,5.489,2667.2,2667.1,0.37484]
[1727558245767,3.2078,2667.6,2667.5,0.37478]
[1727558245973,4.5578,2667.6,2666.9,2.469]
[1727558246272,3.2078,2667.6,2667.4,0.37479]
[1727558246472,1.35,2667.5,2667.4,0.37479]
[1727558248270,6.1378,2667.6,2667.4,0.37479]
[1727558248873,6.1378,2667.6,2667.3,0.37481]
[1727558249274,6.1378,2667.6,2667.4,0.3748]
[1727558249476,6.1378,2667.6,2667.3,0.3748]
[1727558249672,6.1378,2667.6,2667.4,0.3748]
[1727558250061,6.1378,2667.6,2666.9,5.33100943]
[1727558250678,6.1378,2667.6,2667.4,0.3748]
[1727558251071,6.1378,2667.6,2666.9,5.33100943]
[1727558251369,0.3868,2667.9,2666.9,5.33100943]
[1727558251370,6.1378,2667.3,2667.2,0.37481]
[1727558253969,6.1378,2667.3,2667.0,0.37485]
[1727558254178,6.1378,2667.3,2666.9,4.96090943]
[1727558254971,6.1378,2667.3,2667.1,0.37483]
[1727558255274,6.1378,2667.3,2667.2,0.37483]
[1727558255770,6.1378,2667.3,2666.9,4.96090943]
[1727558255771,6.1378,2667.3,2667.1,0.37483]
[1727558255976,3.2078,2667.3,2667.0,0.37485]
[1727558256179,2.93,2667.2,2667.0,0.37485]
[1727558257674,2.93,2667.2,2666.9,0.37486]
[1727558257880,2.93,2667.0,2666.9,0.37486]
[1727558259171,2.93,2667.2,2667.1,0.37484]
[1727558259776,6.6796,2667.2,2667.1,0.37484]
[1727558263879,3.7496,2667.2,2667.1,0.37484]
[1727558264078,3.5926,2667.3,2667.2,0.37483]
[1727558264278,3.2078,2667.3,2667.2,0.37483]
[1727558264577,3.2078,2667.3,2666.8,3.86721]
[1727558264578,3.2078,2667.6,2667.5,0.37478]
[1727558265278,6.1378,2667.6,2667.2,0.3868]
[1727558265484,0.7491,2667.7,2667.2,0.76162]
[1727558265485,3.2078,2667.3,2667.2,0.76162]
[1727558268483,3.2078,2667.6,2667.5,0.37478]
[1727558279195,6.1378,2667.6,2667.5,0.37478]
[1727558282800,6.51257,2667.6,2667.4,0.37479]
[1727558282997,6.88497,2667.6,2667.4,0.37479]
[1727558285790,6.5102,2667.6,2667.4,0.37479]
[1727558285997,6.88498,2667.6,2667.4,0.37479]
[1727558286196,3.7488,2667.5,2667.2,0.37482]
[1727558286393,3.2078,2667.3,2667.2,0.37482]
[1727558286589,3.2078,2667.3,2666.9,0.3724]
[1727558286794,3.2078,2667.0,2666.9,0.74727]
[1727558288703,3.2078,2667.0,2666.6,0.37491]
[1727558288704,0.37489,2666.8,2666.6,0.37491]
[1727558288893,0.37489,2666.8,2666.4,0.3706]
[1727558288894,0.791,2666.9,2666.8,0.37488]
[1727558289402,0.791,2666.9,2666.7,0.37489]
[1727558289403,4.91547,2666.9,2666.7,0.37489]
[1727558289701,0.37488,2666.8,2666.7,0.37489]
[1727558289893,3.7496,2666.8,2666.3,4.0174]
[1727558290094,3.2078,2666.7,2666.6,0.37491]
[1727558293002,3.2078,2667.2,2667.1,0.37484]
[1727558293208,3.2078,2667.2,2667.0,0.37484]
[1727558293407,3.2078,2667.2,2667.1,0.37484]
[1727558293607,3.2078,2667.2,2667.0,0.37484]
[1727558294204,3.2078,2667.2,2667.1,0.37484]
[1727558294506,3.2078,2667.2,2667.0,0.37484]
[1727558294708,3.2078,2667.2,2667.1,0.37484]
[1727558294907,3.2078,2667.2,2666.8,0.3786]
[1727558295112,3.2078,2667.2,2667.1,0.37484]
[1727558297004,0.8045,2667.4,2667.3,0.37481]
[1727558297207,3.2078,2667.5,2667.4,0.3748]
[1727558302905,3.58259,2667.5,2667.3,0.74821]
[1727558303109,3.2078,2667.5,2667.4,0.3748]
[1727558303415,3.58259,2667.5,2667.3,0.3748]
[1727558303615,3.2078,2667.5,2667.3,0.3748]
[1727558304216,3.58258,2667.5,2667.3,0.3748]
[1727558304807,6.1378,2667.5,2667.1,0.3826]
[1727558305009,0.37485,2667.1,2666.9,0.78376]
[1727558305216,3.58263,2667.2,2667.0,0.37485]
[1727558305519,3.58263,2667.2,2666.9,0.4089]
[1727558305520,0.77604,2667.1,2666.9,0.78376]
[1727558305919,0.4012,2667.1,2667.0,0.37485]
[1727558307312,0.4012,2667.1,2666.9,0.4089]
[1727558307514,0.77604,2667.1,2667.0,0.37485]
[1727558307909,4.1508,2667.1,2667.0,0.37485]
[1727558309814,13.0808,2667.1,2666.6,0.38]
[1727558310013,3.30487,2666.9,2666.7,0.37489]
[1727558310215,0.37486,2667.0,2666.4,1.30683]
[1727558310429,0.77605,2667.1,2666.9,0.37486]
[1727558310809,0.4012,2667.1,2667.0,0.37485]
[1727558311319,4.1508,2667.1,2667.0,0.37485]
[1727558311522,4.52564,2667.1,2667.0,0.37485]
[1727558312019,4.1508,2667.1,2667.0,0.37485]
[1727558312214,0.4012,2667.1,2667.0,0.37485]
[1727558314416,0.77604,2667.1,2667.0,0.37485]
[1727558314619,0.4012,2667.1,2667.0,0.37485]
[1727558314924,0.77604,2667.1,2667.0,0.37485]
[1727558315823,7.0808,2667.1,2666.8,0.3879]
[1727558316023,4.145,2666.9,2666.6,0.37491]
[1727558316230,0.3749,2666.7,2666.6,0.37491]
[1727558316619,0.37491,2666.6,2666.5,0.37492]
[1727558316823,3.58271,2666.6,2666.4,0.77233]
[1727558317034,0.3856,2666.5,2666.4,0.37493]
[1727558317215,0.76052,2666.5,2666.4,0.37493]
[1727558317521,0.3856,2666.5,2666.4,0.37493]
[1727558319827,0.76052,2666.5,2666.4,0.37493]
[1727558320025,0.3856,2666.5,2666.4,0.37493]
[1727558320717,4.136,2666.5,2666.1,0.779]
[1727558320920,3.2078,2666.2,2666.1,0.77237]
[1727558326022,3.5934,2666.5,2666.4,0.37494]
[1727558326436,7.3438,2666.5,2666.4,0.37494]
[1727558326631,6.9582,2666.5,2666.4,0.37494]
[1727558326819,7.33312,2666.5,2666.4,0.37494]
[1727558328024,6.9582,2666.5,2666.4,0.37494]
[1727558328232,3.2078,2666.5,2666.4,0.37494]
[1727558328427,3.2078,2666.5,2666.3,0.37495]
[1727558328627,3.58273,2666.5,2666.4,0.37494]
[1727558329133,0.37495,2666.4,2665.8,0.93757]
[1727558329432,0.37495,2666.4,2666.2,0.37496]
[1727558330233,0.37495,2666.4,2666.0,0.3841]
[1727558330234,0.37495,2666.4,2666.3,0.3732]
[1727558330440,0.37495,2666.4,2665.4,2.40643266]
[1727558330441,2.93,2666.4,2665.4,2.40643266]
[1727558330624,3.2078,2666.0,2665.9,0.375]
[1727558330826,3.58281,2666.0,2665.8,0.37502]
[1727558331131,3.96061,2666.0,2665.9,0.37501]
[1727558331333,3.5856,2666.0,2665.9,0.37501]
[1727558331535,3.96061,2666.0,2665.7,0.3857]
[1727558331831,0.37502,2665.8,2665.6,0.76815]
[1727558332035,7.45311,2666.0,2665.6,0.37505]
[1727558332350,7.45311,2666.0,2665.4,0.3857]
[1727558332351,0.37506,2665.6,2665.4,0.3857]
[1727558333032,0.37507,2665.5,2665.3,0.402]
[1727558333233,0.37506,2665.6,2665.3,0.77709]
[1727558333440,0.3948,2665.4,2665.1,3.2078]
[1727558333734,0.3948,2665.4,2665.2,0.3751]
[1727558333937,0.3948,2665.4,2665.3,0.37509]
[1727558334129,0.3751,2665.3,2665.1,3.2078]
[1727558334333,3.6026,2665.4,2665.1,0.37511]
[1727558334536,3.6026,2665.4,2665.2,0.3751]
[1727558335134,3.97768,2665.4,2665.1,0.37511]
[1727558335342,3.6026,2665.4,2665.0,0.37513]
[1727558335638,3.6026,2665.4,2665.1,0.37512]
[1727558335639,3.97769,2665.4,2665.1,0.37512]
[1727558335833,0.3751,2665.3,2665.0,0.37513]
[1727558336033,0.37511,2665.2,2664.9,0.37514]
[1727558336238,0.77381,2665.2,2664.9,0.37514]
[1727558336430,0.3987,2665.2,2665.0,0.37514]
[1727558336635,0.3987,2665.2,2664.8,0.402]
[1727558336833,5.86,2664.9,2663.9,0.11819266]
[1727558337040,7.0288,2665.1,2663.6,0.45067082]
[1727558337041,2.93,2664.0,2663.6,0.45067082]
[1727558337348,3.2078,2663.8,2663.6,0.26067082]
[1727558337637,6.222,2663.7,2663.6,0.26067082]
[1727558337833,12.9064,2663.7,2663.6,0.26067082]
[1727558338029,9.9764,2663.6,2663.0,0.58305554]
[1727558338233,3.629,2663.1,2662.9,1.38422741]
[1727558338434,3.30542,2663.0,2662.9,0.28562741]
[1727558338829,13.06062,2663.0,2662.9,0.28562741]
[1727558339442,13.06062,2663.0,2662.2,1.35201246]
[1727558339443,0.37552,2662.3,2662.2,1.35201246]
[1727558339634,6.1378,2662.3,2662.2,1.35201246]
[1727558339834,15.8938,2662.3,2662.2,1.35201246]
[1727558340041,16.26932,2662.3,2662.2,1.35201246]
[1727558340237,12.9638,2662.3,2662.2,2.73764606]
[1727558340638,3.2078,2662.3,2662.2,2.73764606]
[1727558341045,3.2078,2662.3,2662.2,1.3856336]
[1727558341843,3.2078,2662.3,2661.7,3.30559]
[1727558342041,3.2078,2662.3,2661.7,2.93]
[1727558342258,3.2078,2662.3,2661.7,3.3056]
[1727558342745,3.2078,2662.3,2661.9,0.37557]
[1727558343141,3.2078,2662.3,2661.9,2.93]
[1727558343347,0.087,2662.8,2661.9,3.3048]
[1727558343348,3.2078,2662.6,2661.9,3.3048]
[1727558343734,3.2078,2662.6,2662.3,0.37551]
[1727558343939,3.2078,2662.6,2662.5,0.37549]
[1727558344959,3.2078,2662.9,2662.6,0.37547]
[1727558345548,3.2078,2662.9,2662.4,2.93]
[1727558346446,3.2078,2662.9,2662.8,0.37545]
[1727558346840,3.2078,2662.9,2662.6,0.37547]
[1727558348350,0.37545,2662.8,2662.3,0.396]
[1727558348541,3.2078,2662.6,2662.3,0.396]
[1727558350954,3.2078,2662.6,2662.4,0.3755]
[1727558351151,3.2078,2662.6,2662.5,0.37549]
[1727558351345,3.2078,2662.6,2662.4,0.37549]
[1727558352657,3.2078,2662.6,2662.5,0.37549]
[1727558353458,3.2078,2663.0,2662.5,3.756]
[1727558353658,3.2078,2663.0,2662.4,2.93]
[1727558353659,3.2078,2663.0,2662.8,0.37543]
[1727558353851,3.2078,2663.0,2662.8,0.37544]
[1727558355054,3.2078,2663.0,2662.9,0.37543]
[1727558357962,3.2078,2663.3,2663.0,0.37542]
[1727558358654,6.963,2663.3,2663.0,0.37542]
[1727558359252,3.2078,2663.3,2663.0,0.37542]
[1727558360159,3.2078,2663.3,2663.1,0.3731]
[1727558361562,3.2078,2663.3,2663.1,0.74849]
[1727558361869,3.2078,2663.3,2663.1,0.3731]
[1727558362261,3.2078,2663.3,2663.1,0.7485]
[1727558363363,3.2078,2663.3,2663.1,0.3731]
[1727558365574,6.963,2663.3,2663.1,0.3731]
[1727558365762,0.3754,2663.1,2662.7,0.3962]
[1727558366067,2.93,2662.8,2661.8,3.2078]
[1727558366278,2.93,2662.8,2661.4,3.10234433]
[1727558366279,3.2078,2662.2,2661.9,0.76146]
[1727558366669,3.2078,2662.2,2662.0,0.37556]
[1727558367168,3.7568,2662.1,2661.5,0.8075]
[1727558367372,6.51334,2662.2,2661.7,0.37559]
[1727558368165,0.37555,2662.1,2661.6,0.37561]
[1727558370166,0.37555,2662.1,2661.7,0.3756]
[1727558370572,6.1378,2662.2,2661.9,0.37557]
[1727558371269,6.1378,2662.2,2661.5,1.1934]
[1727558371476,3.2078,2662.2,2661.6,2.93]
[1727558371770,3.2078,2662.2,2662.0,0.37556]
[1727558371969,3.2078,2662.2,2661.9,0.37556]
[1727558372166,3.2078,2662.2,2661.9,0.37557]
[1727558372972,3.30557,2662.0,2661.5,0.76152]
[1727558373163,3.2078,2661.7,2661.5,0.3859]
[1727558373363,3.2078,2661.7,2661.5,0.76152]
[1727558375574,3.2078,2661.8,2661.6,0.37561]
[1727558376082,3.2078,2661.8,2661.7,0.3756]
[1727558378465,6.1378,2662.2,2661.8,0.37558]
[1727558378670,3.2078,2661.9,2661.8,0.37558]
[1727558379075,6.1378,2662.2,2661.8,0.37558]
[1727558379270,3.2078,2661.9,2661.8,0.37558]
[1727558379478,6.1378,2662.2,2661.8,0.37558]
[1727558379667,3.2078,2661.9,2661.8,0.37558]
[1727558381576,2.93,2662.0,2661.8,0.37558]
[1727558381778,3.2078,2661.9,2661.6,0.4037]
[1727558381972,3.2078,2661.9,2661.8,0.37559]
[1727558383577,0.37559,2661.8,2661.4,0.37564]
[1727558383886,2.93,2661.7,2661.3,0.37565]
[1727558384068,2.93,2661.7,2661.4,0.37564]
[1727558384275,2.93,2661.7,2661.3,0.37565]
[1727558384276,3.30561,2661.7,2661.3,0.37565]
[1727558384481,3.2078,2661.5,2661.3,0.37566]
[1727558385078,3.7576,2661.4,2660.5,3.2078]
[1727558385272,12.1378,2661.5,2661.0,0.3757]
[1727558385273,2.93,2661.3,2661.0,0.3757]
[1727558385481,2.93,2661.3,2660.7,0.93936]
[1727558385676,2.93,2661.3,2661.2,0.37567]
[1727558385876,2.93,2661.3,2661.0,0.37569]
[1727558386276,3.2078,2661.1,2660.9,0.3757]
[1727558386482,3.2078,2661.1,2661.0,0.3757]
[1727558386984,6.9654,2661.1,2661.0,0.3757]
[1727558387171,9.8954,2661.1,2660.6,0.3835]
[1727558387374,6.1378,2661.1,2661.0,0.3757]
[1727558387870,9.8954,2661.1,2661.0,0.3757]
[1727558388883,6.1378,2661.1,2661.0,0.3757]
[1727558389284,3.2078,2661.1,2661.0,0.3757]
[1727558389480,3.2078,2661.4,2661.2,0.37567]
[1727558389786,3.2078,2661.4,2661.3,0.77456]
[1727558389978,3.2078,2661.4,2661.3,0.3989]
[1727558390776,3.2078,2661.4,2661.3,0.77456]
[1727558390981,3.2078,2661.4,2661.3,0.3989]
[1727558391180,3.2078,2661.4,2661.3,0.77456]
[1727558396988,3.2078,2661.4,2661.3,4.53216]
[1727558397182,0.087,2662.2,2662.1,0.37554]
[1727558397480,2.93,2662.4,2661.4,0.93912]
[1727558397481,2.93,2662.4,2662.2,0.37553]
[1727558397984,2.93,2662.4,2662.3,0.37552]
[1727558398386,2.93,2662.4,2662.2,0.37552]
[1727558399480,2.93,2662.4,2661.9,0.3717]
[1727558399785,6.1378,2662.6,2662.1,3.2078]
[1727558400179,6.1378,2662.6,2662.3,0.37551]
[1727558400382,3.2078,2662.6,2662.5,0.37549]
[1727558400588,5.16448,2663.3,2662.7,0.37546]
[1727558400589,2.93,2662.9,2662.7,0.37546]
[1727558400882,2.93,2662.9,2662.6,0.37547]
[1727558401085,6.1378,2662.7,2662.0,0.4021]
[1727558401285,2.93,2662.4,2662.1,0.37554]
[1727558401482,2.93,2662.4,2662.0,0.37555]
[1727558402093,2.93,2662.4,2661.9,0.3717]
[1727558402590,2.93,2662.4,2662.1,0.37554]
[1727558402792,2.93,2662.4,2662.2,0.37553]
[1727558402982,2.93,2662.4,2661.9,0.3717]
[1727558403293,2.93,2662.4,2662.1,0.37554]
[1727558403793,2.93,2662.4,2662.2,0.37553]
[1727558403983,2.93,2662.4,2662.1,0.37554]
[1727558405076,2.93,2662.4,2662.2,0.37553]
[1727558405282,2.93,2662.4,2662.1,0.37554]
[1727558405679,2.93,2662.4,2662.2,0.37553]
[1727558405888,2.93,2662.4,2661.9,0.3717]
[1727558406286,2.93,2662.4,2662.1,0.37553]
[1727558406485,2.93,2662.4,2662.2,0.37552]
[1727558406691,2.93,2662.4,2662.3,0.37552]
[1727558407190,2.93,2662.6,2662.4,0.3755]
[1727558407589,2.93,2662.6,2661.9,0.3717]
[1727558407590,2.93,2662.6,2662.3,0.37551]
[1727558407796,2.93,2662.6,2662.4,0.3755]
[1727558408292,2.93,2662.6,2661.9,0.3717]
[1727558408293,2.93,2662.6,2662.3,0.37551]
[1727558408690,0.3736,2663.0,2661.9,0.3717]
[1727558408691,0.37554,2662.2,2661.9,0.3717]
[1727558408890,12.3748,2662.4,2661.9,0.3717]
[1727558408891,6.237,2662.4,2661.9,0.3717]
[1727558409092,3.2078,2662.7,2662.0,4.04276296]
[1727558409093,2.93,2662.7,2662.0,4.04276296]
[1727558409291,2.93,2662.7,2661.9,0.3717]
[1727558409499,2.93,2662.5,2661.9,0.3717]
[1727558409691,2.93,2662.2,2661.9,0.3717]
[1727558413300,12.3748,2662.0,2660.9,0.3757]
[1727558413497,2.93,2661.4,2661.2,0.3749]
[1727558420992,3.7576,2661.3,2661.0,0.7838]
[1727558421187,2.93,2661.4,2661.0,1.1857]
[1727558421696,2.93,2661.2,2661.0,1.1857]
[1727558423500,6.6876,2661.2,2660.9,3.2078]
[1727558423697,2.93,2661.0,2660.9,3.2078]
[1727558426795,3.3057,2661.0,2660.9,3.2078]
[1727558427102,3.3057,2661.0,2660.8,0.37573]
[1727558427298,6.7574,2660.9,2660.0,3.4078]
[1727558427604,6.7574,2660.9,2660.0,0.2]
[1727558427605,2.93,2660.1,2660.0,0.2]
[1727558428107,7.06503,2660.1,2660.0,0.2]
[1727558429192,8.0046,2660.1,2660.0,0.2]
[1727558429396,13.62881,2660.1,2659.4,3.2078]
[1727558429596,3.30591,2659.5,2659.4,3.2078]
[1727558429792,2.93,2659.5,2659.4,3.2078]
[1727558429997,6.69,2659.5,2659.4,3.2078]
[1727558430200,7.06591,2659.5,2659.4,3.2078]
[1727558430800,13.06591,2659.5,2659.4,3.2078]
[1727558431199,7.06591,2659.5,2659.4,3.2078]
[1727558432107,2.93,2659.5,2659.4,3.58373]
[1727558432704,2.93,2659.5,2659.4,3.2078]
[1727558432908,2.93,2659.5,2659.4,3.58373]
[1727558433208,2.93,2659.5,2659.4,3.2078]
[1727558433510,2.93,2659.5,2659.4,3.58373]
[1727558434898,2.93,2659.5,2659.4,0.37593]
[1727558435305,2.93,2659.5,2659.3,0.37593]
[1727558435507,2.93,2659.5,2659.4,0.75363]
[1727558435706,2.93,2659.5,2659.4,0.3777]
[1727558436006,3.30591,2659.5,2659.4,0.3777]
[1727558436211,2.93,2659.5,2659.4,0.3777]
[1727558436905,7.06591,2659.5,2659.4,0.3777]
[1727558437506,0.37593,2659.4,2659.0,3.2078]
[1727558437701,6.69,2659.5,2659.1,0.75367]
[1727558437702,2.93,2659.2,2659.1,0.75367]
[1727558438302,6.6908,2659.2,2659.1,0.75367]
[1727558438504,2.93,2659.2,2659.1,0.75367]
[1727558439007,0.37597,2659.1,2659.0,3.2078]
[1727558439206,0.37597,2659.1,2658.9,0.4028]
[1727558439207,0.37598,2659.0,2658.9,0.4028]
[1727558439407,6.6908,2659.0,2658.9,0.4028]
[1727558439602,7.06678,2659.0,2658.9,0.4028]
[1727558440214,6.6908,2659.0,2658.9,0.4028]
[1727558440403,7.06678,2659.0,2658.9,0.4028]
[1727558441013,7.06678,2659.0,2658.9,0.7788]
[1727558441212,0.37601,2658.9,2658.7,3.3078]
[1727558441408,0.37601,2658.8,2658.7,3.3078]
[1727558441607,2.93,2659.0,2658.7,3.68382]
[1727558441608,0.376,2658.9,2658.7,3.68382]
[1727558441912,2.93,2659.0,2658.7,3.3078]
[1727558441913,0.37601,2658.8,2658.7,3.3078]
[1727558442305,3.7608,2658.8,2658.7,3.68382]
[1727558443908,4.13681,2658.8,2658.7,3.3078]
[1727558444106,3.7608,2658.8,2658.7,3.68382]
[1727558445008,0.376,2658.9,2658.7,3.68382]
[1727558445213,0.37601,2658.8,2658.7,3.3078]
[1727558445721,4.13681,2658.8,2658.7,3.3078]
[1727558445909,17.31384,2658.8,2658.7,0.1]
[1727558446105,20.52164,2658.8,2658.7,0.1]
[1727558446509,24.42564,2658.8,2658.7,0.1]
[1727558446704,23.48561,2658.8,2658.7,0.1]
[1727558446905,3.58381,2658.8,2658.7,0.1]
[1727558447106,2.93,2658.9,2658.7,0.1]
[1727558447314,2.93,2658.9,2658.8,0.74781]
[1727558447711,2.93,2658.9,2658.8,4.35061]
[1727558450619,3.58373,2659.4,2659.1,0.37596]
[1727558450827,3.2078,2659.4,2659.2,0.75395]
[1727558451214,3.76,2659.3,2659.2,0.75395]
[1727558451519,3.76,2659.3,2659.2,0.378]
[1727558452120,3.58373,2659.4,2659.2,0.378]
[1727558452317,2.93,2659.3,2659.2,0.75395]
[1727558454523,2.93,2659.3,2659.2,0.378]
[1727558455212,3.30594,2659.3,2659.2,0.378]
[1727558455415,2.93,2659.3,2659.2,0.378]
[1727558456116,2.93,2659.3,2659.2,0.75395]
[1727558456322,2.93,2659.3,2659.2,0.378]
[1727558457008,2.93,2659.3,2659.2,0.75395]
[1727558457214,2.93,2659.3,2659.2,0.378]
[1727558457415,2.93,2659.3,2659.2,0.75395]
[1727558457729,2.93,2659.3,2659.2,0.378]
[1727558458118,2.93,2659.3,2659.2,0.75395]
[1727558458518,2.93,2659.3,2659.2,0.378]
[1727558459815,2.93,2659.3,2659.2,0.75395]
[1727558460922,0.60666381,3658.5,2659.9,0.37585]
[1727558460923,0.087,2660.1,2659.9,0.37585]
[1727558461130,6.61282,2660.2,2660.0,0.4057]
[1727558461131,6.237,2660.2,2660.0,0.4057]
[1727558461325,0.37577,2660.5,2660.2,0.37581]
[1727558461529,3.2078,2660.4,2660.2,0.37581]
[1727558462635,0.37577,2660.5,2660.2,0.37581]
[1727558462636,2.93,2660.3,2660.2,0.37581]
[1727558462821,2.93,2660.5,2660.4,0.37578]
[1727558463432,6.1378,2660.7,2660.6,0.37576]
[1727558463623,2.93,2661.0,2660.9,0.37571]
[1727558465119,2.93,2661.0,2660.8,0.37572]
[1727558465422,2.93,2661.0,2660.9,0.37571]
[1727558465830,2.93,2661.3,2661.1,0.37568]
[1727558466021,3.30566,2661.3,2660.8,0.3804]
[1727558466226,2.93,2661.3,2661.1,0.37568]
[1727558466728,3.58345,2661.4,2661.0,0.37569]
[1727558466729,2.93,2661.2,2661.0,0.37569]
[1727558466931,2.93,2661.2,2660.8,0.3804]
[1727558466932,2.93,2661.2,2661.1,0.37569]
[1727558467728,2.93,2661.2,2660.6,1.32047]
[1727558467729,0.37573,2660.8,2660.6,0.3811]
[1727558469228,3.2078,2660.7,2660.2,0.37581]
[1727558469430,0.37577,2660.5,2660.2,0.37581]
[1727558469628,2.93,2660.6,2659.9,0.4034]
[1727558469629,0.37579,2660.4,2660.1,0.37582]
[1727558469835,2.93,2660.6,2660.0,0.37583]
[1727558469836,0.37581,2660.3,2660.0,0.37583]
[1727558470028,3.30581,2660.3,2660.0,0.37583]
[1727558470228,3.30581,2660.3,2659.9,0.4034]
[1727558470229,2.93,2660.3,2660.1,0.37582]
[1727558470431,3.3058,2660.3,2660.1,0.37582]
[1727558470736,2.93,2660.3,2660.1,0.37582]